Cogmind - Beta 10.2 @@@ ROGUE MODE // 2021.09.28 @ 17:52:31 Player: User Result: Destroyed by G-47 Trooper with Particle Gun Performance ------------- Evolutions (2) 1000 Regions Visited (4) 800 Robots Destroyed (8) 40 Value Destroyed (365) 365 Prototype IDs (4) 80 Alien Tech Used (0) 0 Bonus (200) 200 TOTAL SCORE: 2485 Bonus ------- Pacifist 200 Cogmind --------- Core Integrity 0/550 Matter 298/300 Energy 100/100 System Corruption 7% Temperature Cool (9) Movement Core (300) Ox5 Location -8/Materials Parts ------- > --- POWER (2) -------- (None) > --- PROPULSION (3) --- (None) > --- UTILITY (4) ------ Large Storage Unit > --- WEAPON (2) ------- (None) > --- INVENTORY (10) --- Improved Ion Engine Airjet Heat Sink Small Storage Unit Compact Matter Pod (150) Particle Charger Maneuvering Thrusters Peak State ------------ > --- POWER ------------ Improved Ion Engine Nuclear Core > --- PROPULSION ------- Aluminum Leg Aluminum Leg Aluminum Leg > --- UTILITY ---------- Large Storage Unit Experimental Sensor Array Targeting Computer Medium Armor Plating > --- WEAPON ----------- Heavy Assault Rifle > --- INVENTORY -------- Ion Engine Airjet Small Storage Unit Compact Matter Pod Signal Interpreter Particle Charger [Rating: 21] Favorites ----------- Power Ion Engine Engine Ion Engine Power Core Nuclear Core Propulsion Aluminum Leg Leg Aluminum Leg Utility Experimental Sensor Array Device Experimental Sensor Array Storage Large Storage Unit Processor Targeting Computer Protection Medium Armor Plating Weapon Medium Laser Energy Gun Medium Laser Ballistic Gun Heavy Assault Rifle Ballistic Cannon Light Cannon Build | -11 -10 -10 -9 -8 ------- Run | Scr Mat Min Mat Mat Slots Evolved 4 | . . . 2 2 Power 1 | . . . 1 . Propulsion 1 | . . . 1 . Utility 2 | . . . . 2 Weapon . | . . . . . Parts Attached 26 | 6 3 5 4 8 Power 4 | 1 . 1 1 1 Engine 3 | 1 . 1 1 . Core 1 | . . . . 1 Reactor . | . . . . . Propulsion 7 | 2 . 1 1 3 Treads . | . . . . . Leg 7 | 2 . 1 1 3 Wheel . | . . . . . Hover . | . . . . . Flight . | . . . . . Utility 9 | 1 2 2 1 3 Device 1 | . . 1 . . Storage 4 | 1 1 1 1 . Processor 2 | . . . . 2 Hackware . | . . . . . Protection 2 | . 1 . . 1 Artifact . | . . . . . Weapon 6 | 2 1 1 1 1 Energy Gun 3 | 1 . 1 . 1 Energy Cannon . | . . . . . Ballistic Gun 2 | 1 . . 1 . Ballistic Cannon 1 | . 1 . . . Launcher . | . . . . . Special Weapon . | . . . . . Impact Weapon . | . . . . . Slashing Weapon . | . . . . . Piercing Weapon . | . . . . . Special Melee Weapon . | . . . . . Unidentified Prototypes 1 | . . 1 . . Parts Lost 20 | . . 5 . 15 Power 3 | . . 1 . 2 Propulsion 7 | . . 1 . 6 Utility 5 | . . 1 . 4 Weapon 5 | . . 2 . 3 Highest Loss Streak 10 | . . 5 . 10 Average Slot Usage (%) 83 | . 98 91 79 78 Engine 11 | . 14 12 11 10 Core 1 | . . . . 4 Leg 26 | . 28 27 33 20 Device 6 | . . . 11 7 Storage 12 | . 14 18 11 9 Processor 3 | . . . . 10 Protection 5 | . 12 8 . 5 Energy Gun 5 | . 1 5 11 2 Ballistic Gun 6 | . 14 8 2 7 Ballistic Cannon 2 | . 12 7 . . Naked Turns . | . . . . . Heaviest Build 41 | 13 21 21 34 41 Greatest Support 30 | 20 20 20 30 30 Greatest Overweight (x) 5 | . 1 1 1 5 Average Overweight (x) . | . . . . 1 Largest Inventory Capacity 10 | 6 8 8 10 10 Average Capacity 8 | 5 6 8 8 10 Most Carried 8 | 4 6 7 7 8 Average Carried 5 | 1 4 5 5 5 Final Capacity 10 | 6 8 8 10 10 Final Carried 7 | 3 6 4 5 7 Class Distribution -------------------- 100% | Mutant Dominant Class ---------------- Mutant | -10/Materials Mutant | -10/Mines Mutant | -9/Materials Mutant | -8/Materials Resources | -11 -10 -10 -9 -8 ----------- Run | Scr Mat Min Mat Mat Matter Collected 767 | 234 . 300 74 159 Remotely . | . . . . . Salvage Created 502 | . . 55 159 288 Parts 23 | . . . 12 11 Haulers Intercepted . | . . . . . Recyclers Shooed 1 | . . . . 1 Parts Field Recycled . | . . . . . Retrieved Matter . | . . . . . Parts Self-Destructed . | . . . . . Prevented . | . . . . . Kills | -11 -10 -10 -9 -8 ------- Run | Scr Mat Min Mat Mat Combat Hostiles Destroyed 14 | . . 6 3 5 Melee 1 | . . . . 1 Guns 11 | . . 4 3 4 Cannons 2 | . . 2 . . Classes Destroyed 3 | . . 1 2 . Grunt 4 | . . . 1 3 Sentry 4 | . . . 2 2 Assembled 6 | . . 6 . . Best Kill Streak 6 | . . 6 2 1 Combat Bots Only 6 | . . 6 2 1 Max Kills in Single Turn 1 | . . 1 1 1 Gunslinging . | . . . . . Exploded . | . . . . . Melee 1 | . . . . 1 Uniques/NPCs Destroyed . | . . . . . Combat | -11 -10 -10 -9 -8 -------- Run | Scr Mat Min Mat Mat Damage Taken 2382 | . . 693 201 1488 Core 663 | . . 70 26 567 Absorbed by Shields . | . . . . . Core Remaining (%) 88 | 100 . 72 93 . Volleys Fired 95 | . . 28 17 50 Largest 2 | . . 2 2 2 Hottest 73 | . . 55 73 73 Shots Fired 127 | . . 51 25 51 Gun 104 | . . 28 25 51 Cannon 23 | . . 23 . . Launcher . | . . . . . Special . | . . . . . Kinetic 108 | . . 50 8 50 Thermal 19 | . . 1 17 1 Explosive . | . . . . . Electromagnetic . | . . . . . Robot Hit Streak 10 | . . 8 4 10 Robot Miss Streak 6 | . . 6 1 2 Penetration Max . | . . . . . Secondary Targets . | . . . . . Shots Hit Robots 81 | . . 24 18 39 Core Hits 39 | . . 12 6 21 Critical Hits 2 | . . 1 . 1 Critical Kills . | . . . . . Critical Parts Destroyed 2 | . . 1 . 1 Melee Attacks . | . . . . . Impact . | . . . . . Slashing . | . . . . . Piercing . | . . . . . Sneak Attacks . | . . . . . Combat Hostiles . | . . . . . Follow-up Attacks . | . . . . . Damage Inflicted 1225 | . . 342 231 652 Guns 1040 | . . 215 231 594 Cannons 127 | . . 127 . . Explosions . | . . . . . Melee . | . . . . . Ramming 58 | . . . . 58 Kinetic 1004 | . . 330 92 582 Thermal 163 | . . 12 139 12 Explosive . | . . . . . Electromagnetic . | . . . . . Impact . | . . . . . Slashing . | . . . . . Piercing . | . . . . . Highest Corruption 7 | . . . . 7 Average Corruption 4 | . . . . 4 Corruption Purged . | . . . . . Effects 2 | . . . . 2 Message Errors 1 | . . . . 1 Matter Fused 1 | . . . . 1 Overload Shots . | . . . . . Overflow Damage . | . . . . . Projectiles . | . . . . . Explosions . | . . . . . Melee . | . . . . . Knockbacks 2 | . . 2 . . Impact . | . . . . . Kinetic 2 | . . 2 . . Secondary . | . . . . . Self-Inflicted Damage 14 | . . . . 14 Shots . | . . . . . Rammed 17 | . . . . 17 Targets Rammed 25 | . . . . 25 Kicked 8 | . . . . 8 Crushed . | . . . . . Highest Temperature 60 | . . 54 60 39 Average Temperature 20 | . . 23 23 8 Received Heat Transfer 846 | . . . 72 774 Siege Activations . | . . . . . Robots Corrupted . | . . . . . Combat Hostiles . | . . . . . Parts Fried . | . . . . . Impact Corruptions . | . . . . . Robots Melted . | . . . . . Combat Hostiles . | . . . . . Parts Melted . | . . . . . Heat Transferred 481 | . . 37 407 37 Parts Sabotaged . | . . . . . Parts Stolen . | . . . . . Parts Stripped . | . . . . . Power Chain Reactions . | . . . . . Missiles Intercepted . | . . . . . Alert | -11 -10 -10 -9 -8 ------- Run | Scr Mat Min Mat Mat Peak Influence 220 | . 15 5 156 220 Initial 65 | . . 5 . 65 Average 58 | . 14 2 46 129 Maximum Alert Level 1 | . . . . 1 Low Security (%) 93 | 100 100 100 100 79 Level 1 6 | . . . . 20 Level 2 . | . . . . . Level 3 . | . . . . . Level 4 . | . . . . . Level 5 . | . . . . . High Security . | . . . . . Max Security . | . . . . . Squads Dispatched 2 | . 1 . . 1 Investigation . | . . . . . Extermination . | . . . . . Reinforcement 2 | . 1 . . 1 Assault . | . . . . . Garrison . | . . . . . Intercept . | . . . . . Construction Impeded . | . . . . . Haulers Reinforced . | . . . . . Stealth | -11 -10 -10 -9 -8 --------- Run | Scr Mat Min Mat Mat Distress Signals 2 | . . 1 . 1 Communications Jammed . | . . . . . Distress Signals . | . . . . . Times Spotted 37 | . 3 12 5 17 Peak Tracking Total 5 | . 2 5 2 5 Tactical Retreats 3 | . . . . 3 Traps | -11 -10 -10 -9 -8 ------- Run | Scr Mat Min Mat Mat Traps Triggered . | . . . . . Indirectly . | . . . . . Trap Hack Attempts . | . . . . . Triggered . | . . . . . Disarmed . | . . . . . Reprogrammed 6 | . . . 6 . Reused . | . . . . . Traps Extracted . | . . . . . Installed . | . . . . . Triggered . | . . . . . Machines | -11 -10 -10 -9 -8 ---------- Run | Scr Mat Min Mat Mat Machines Disabled 1 | . . . . 1 Max in Single Turn 1 | . . . . 1 Machines Sabotaged . | . . . . . Garrisons Compromised . | . . . . . Overloaded Fab Kills . | . . . . . Fab Network Shutdowns . | . . . . . Hacking | -11 -10 -10 -9 -8 --------- Run | Scr Mat Min Mat Mat Machines Accessed 4 | . . . 3 1 Terminals 4 | . . . 3 1 Fabricators . | . . . . . Repair Stations . | . . . . . Recycling Units . | . . . . . Scanalyzers . | . . . . . Garrison Access . | . . . . . Total Hacks 18 | . . . 12 6 Successful 12 | . . . 8 4 Failed 6 | . . . 4 2 Catastrophic . | . . . . . Database Lockouts . | . . . . . Manual . | . . . . . Terminals 18 | . . . 12 6 Fabricators . | . . . . . Repair Stations . | . . . . . Recycling Units . | . . . . . Scanalyzers . | . . . . . Garrison Access . | . . . . . Terminal Hacks 12 | . . . 8 4 Record 5 | . . . 3 2 Prototype ID Bank 1 | . . . 1 . Branch Access Points 1 | . . . 1 . Emergency Access Points 1 | . . . 1 . Locate Traps 1 | . . . 1 . Reprogram Traps 1 | . . . 1 . Transport Status 1 | . . . . 1 Investigation Status 1 | . . . . 1 Fabricator Hacks . | . . . . . Repair Station Hacks . | . . . . . Recycling Unit Hacks . | . . . . . Scanalyzer . | . . . . . Garrison Access Hacks . | . . . . . Unauthorized Hacks . | . . . . . Terminals . | . . . . . Fabricators . | . . . . . Repair Stations . | . . . . . Recycling Units . | . . . . . Scanalyzers . | . . . . . Garrison Access . | . . . . . Data Cores Recovered . | . . . . . Used . | . . . . . Hacking Detections 4 | . . . 3 1 Full Trace Events . | . . . . . Feedback Events . | . . . . . Feedback Blocked . | . . . . . Robot Schematics Acquired . | . . . . . Robots Built . | . . . . . Matter . | . . . . . Time . | . . . . . Total Robot Build Rating . | . . . . . Part Schematics Acquired . | . . . . . Parts Built . | . . . . . Matter . | . . . . . Time . | . . . . . Total Part Build Rating . | . . . . . Parts Repaired . | . . . . . Time . | . . . . . Parts Recycled . | . . . . . Recycled Matter . | . . . . . Retrieved Matter . | . . . . . Retrieved Components . | . . . . . Parts Scanalyzed . | . . . . . Part Schematics Acquired . | . . . . . Parts Damaged . | . . . . . Bothacking | -11 -10 -10 -9 -8 ------------ Run | Scr Mat Min Mat Mat Used RIF Installer . | . . . . . Robots Hacked . | . . . . . Non-combat . | . . . . . Combat . | . . . . . Robot Hacks Applied . | . . . . . Relay Couplers Released . | . . . . . Robots Rewired . | . . . . . Allies Hacked . | . . . . . Hacks Repelled . | . . . . . Allies | -11 -10 -10 -9 -8 -------- Run | Scr Mat Min Mat Mat Total Allies . | . . . . . Largest Group . | . . . . . Highest-Rated Group . | . . . . . Highest-Rated Ally . | . . . . . Total Orders . | . . . . . Ally Attacks . | . . . . . Total Damage . | . . . . . Kills . | . . . . . Allies Corrupted . | . . . . . Allies Melted . | . . . . . Intel | -11 -10 -10 -9 -8 ------- Run | Scr Mat Min Mat Mat Robot Analysis Total . | . . . . . Derelict Logs Recovered 1 | . . 1 . . Drone Launches . | . . . . . Drone Recoveries . | . . . . . Exploration | -11 -10 -10 -9 -8 ------------- Run | Scr Mat Min Mat Mat Turns Passed 1066 | 62 94 228 331 351 Spaces Moved 542 | 48 67 106 197 124 Core 16 | 14 . . . 2 Treads . | . . . . . Legs 526 | 34 67 106 197 122 Wheels . | . . . . . Hover . | . . . . . Flight . | . . . . . Fastest Speed 50 | 50 120 120 120 120 Average Speed 130 | 99 124 130 122 156 Slowest Speed 300 | 120 150 150 150 300 Overloaded Moves . | . . . . . Propulsion Burnouts . | . . . . . Robots Hopped . | . . . . . Cave-ins Triggered . | . . . . . Exploration Rate (%) 20 | 5 22 37 25 11 Regions Visited 4 Branch Regions 1 Pre-discovered Areas . | . . . . . Known Exits Taken . | . . . . . Unknown Exits Taken 4 | 1 1 1 1 . Scrap Searched . | . . . . . Spaces Dug . | . . . . . Terrain Destroyed . | . . . . . Melee . | . . . . . Projectile . | . . . . . AOE . | . . . . . Terrain Rammed . | . . . . . Walls Destroyed . | . . . . . Machines Disabled . | . . . . . Actions | -11 -10 -10 -9 -8 --------- Run | Scr Mat Min Mat Mat Total 766 | 64 77 145 262 218 Wait 43 | . . 4 39 . Move 538 | 47 66 105 196 124 Hop . | . . . . . Pick Up 33 | 10 6 2 5 10 Fast Attach . | . . . . . Attach 22 | 6 1 5 3 7 Detach 1 | . . 1 . . Swap 4 | . 2 . 1 1 Drop 5 | 1 2 . 1 1 Fire 95 | . . 28 17 50 Melee . | . . . . . Ram 2 | . . . . 2 Kick 23 | . . . . 23 Crush . | . . . . . Escape Stasis . | . . . . . Rewire . | . . . . . Trap . | . . . . . Miscellaneous . | . . . . . Route ------- -11/Scrapyard -10/Materials -10/Mines -9/Materials (discovered 2 exits: *Mat / Min) -8/Materials History --------- Turn | Location | Event 3 | -11/Scrapyard | Discovered new exit (range 16) 63 | -11/Scrapyard | Entered Materials 149 | -10/Materials | Discovered new exit (range 6) 157 | -10/Materials | Entered Mines 158 | -10/Mines | Assembled infested the area 163 | -10/Mines | Assisted by a Guerilla fighting off Assembled 166 | -10/Mines | Learned 2 Materials zone layouts 322 | -10/Mines | Build established: Mutant 326 | -10/Mines | Lost 5 parts (1p1n1u2w) 367 | -10/Mines | Found a damaged Exp. Sensor Array with a note attached 370 | -10/Mines | Found Prototype Device 371 | -10/Mines | Identified Exp. Sensor Array 373 | -10/Mines | Discovered new exit (range 11) 385 | -10/Mines | Entered Materials 385 | -9/Materials | Evolved 2 slots: Power x1, Propulsion x1 472 | -9/Materials | Identified exit to Mines 649 | -9/Materials | Discovered new exit (range 5) 716 | -9/Materials | Entered another Materials area 716 | -8/Materials | Evolved 2 slots: Utility x2 1006 | -8/Materials | Lost 3 parts (1p1n1u) 1035 | -8/Materials | Core integrity fell below 50% 1062 | -8/Materials | Core integrity fell below 20% 1067 | -8/Materials | Destroyed by G-47 Trooper with Particle Gun Last Messages --------------- Acquired Particle Gun. Particle Gun destroyed. Acquired 4 matter. Slammed into G-47 Trooper. Acquired 2 matter. Kicked G-47 Trooper out of the way. Slammed into G-47 Trooper. Kicked G-47 Trooper out of the way. Slammed into G-47 Trooper. Aluminum Leg destroyed. Slammed into G-47 Trooper. Signal Interpreter destroyed. System corrupted by crushing effect (+4). Slammed into G-47 Trooper. Aluminum Leg destroyed. Slammed into G-47 Trooper. Targeting Computer destroyed. System corrupted: Matter fused (-8). Slammed into G-47 Trooper. Acquired 4 matter. Map ----- +----------------------------------------------------+ | ?????????????????????????????????????????????????? | | ?????????????????????????????????????????????????? | | ?????????????????????????????????????????????????? | | ?????????????????????????????????????????????????? | | ?????????????????????????????????????????????????? | | ??????????????????????????????? ?##?????????????? | | ??????????????????????????????# ? #????????????? | | ?????????????????????????????? ?????????????? | | ?????????????????????????????? T ?????????????? | | ??????????????????????????????? ?????????????? | | ??????????????????????????????? ??############ | | ???????????????????????????????# #??# """ # | | ???????????????????????????????# #??# """ # | | ???????????????????????????????# #??# """ # | | ???????????????????????????????# #??# # # | | ???????????????????????????????# #??# # # | | ???????????????????????????###?# #???? # # | | ????????????????????????#### ### #######+### # | | ????????????????????????# # | | ????????????????????#???# """ # | | ????????????????????#r??# """%+ | | ????????????????????# ?# """ #########+########+ | | ????????????????????# ==#%%" " #??# # | | ???????????????"""" # *%#=%o #??# =*# | | ???????????????"""" + %/gY% #??# """ = # | | ???????????????"""" # !#@g% #??# """ # "" | | ????????????????????##### % #??# """ # """ | | ????????????????????????#%"" #??# # """ | | ????????????????????????#%"T #??# # """ | | ????????????????????????#g"" #??# % # "" | | ????????????????????????# #??######*########? | | ????????????????????????########???????###???????? | | ?????????????????????????????????????????????????? | | ?????????????????????????????????????????????????? | | ?????????????????????????????????????????????????? | | | | | | | | | | | | | | | | | | | | | | | | | | | | | | | +----------------------------------------------------+ Best States ------------- Heat Dissipation 31 Energy Generation 21 Energy Capacity 415 Matter Stores 450 Matter Capacity 450 Sight Range 16 Robot Scan Range 30 Terrain Scan Density 10 Armor Coverage 225 Evasion (%) 50 Targeting Accuracy 5 Item Schematics ----------------- None Robot Schematics ------------------ None Fabricated ------------ Nothing Alien Tech Used ----------------- None Achievements -------------- None Challenges ------------ None Game ------ Seed SigixRocketDoomcannon Manual? 0 Play Time 00:12:12 Cumulative 19.6 hours Start 2021.09.28 @ 17:40:45 End 2021.09.28 @ 17:52:31 Sessions 1 Manual Loads 0 Difficulty Rogue Special Mode None Game No. 41 Rogue 41 Adventurer 0 Explorer 0 Win Type - Total 0 Types 0/0/0/0/0/0/0/0/0 Lore% 25 Gallery% 27 Achievement% 19 Wizard Run 0 Options --------- ASCII 0 Keyboard 0 Movement Mouse Keybinds 0 Fullscreen 2 Font 20/Terminus Map View 66x50 Tactical HUD 0 Map Filters NONE Filters NONE Steam 1 RUN: 43fd1f5e-066c-4f07-863c-480471bbf134